fUSD/lending_fUSD_20260611
["ID","MTS","AMOUNT","RATE_DAILY","PERIOD"]
[424746324,1781121047000,-500.0,0.00014829,2]
[424746326,1781121047000,-500.0,0.00014829,2]
[424746323,1781121047000,-500.0,0.00014829,2]
[424746315,1781121047000,-500.0,0.00014829,2]
[424746327,1781121047000,-500.0,0.00014829,2]
[424746330,1781121047000,-500.0,0.00014829,2]
[424746282,1781121047000,-500.0,0.00014829,2]
[424746329,1781121047000,-500.0,0.00014829,2]
[424746331,1781121047000,-500.0,0.00014829,2]
[424746333,1781121047000,-25000.0,0.00014838,3]
[424746335,1781121047000,-25000.0,0.00014847,3]
[424746334,1781121047000,-350.0,0.0001484,4]
[424746336,1781121047000,-150.0,0.0001485,2]
[424746332,1781121047000,-25000.0,0.0001483,3]
[424746337,1781121047000,-150.0,0.00014853,2]
[424746338,1781121047000,-25000.0,0.00014856,3]
[424746325,1781121047000,-500.0,0.00014829,2]
[424746317,1781121047000,-500.0,0.00014829,2]
[424746328,1781121047000,-500.0,0.00014829,2]
[424746309,1781121047000,-500.0,0.00014829,2]
[424746312,1781121047000,-500.0,0.00014829,2]
[424746287,1781121047000,-500.0,0.00014829,2]
[424746292,1781121047000,-500.0,0.00014829,2]
[424746288,1781121047000,-500.0,0.00014829,2]
[424746291,1781121047000,-500.0,0.00014829,2]
[424746289,1781121047000,-500.0,0.00014829,2]
[424746286,1781121047000,-500.0,0.00014829,2]
[424746294,1781121047000,-500.0,0.00014829,2]
[424746296,1781121047000,-500.0,0.00014829,2]
[424746290,1781121047000,-500.0,0.00014829,2]
[424746293,1781121047000,-500.0,0.00014829,2]
[424746298,1781121047000,-500.0,0.00014829,2]
[424746285,1781121047000,-500.0,0.00014829,2]
[424746299,1781121047000,-500.0,0.00014829,2]
[424746311,1781121047000,-500.0,0.00014829,2]
[424746308,1781121047000,-500.0,0.00014829,2]
[424746310,1781121047000,-500.0,0.00014829,2]
[424746301,1781121047000,-500.0,0.00014829,2]
[424746307,1781121047000,-500.0,0.00014829,2]
[424746304,1781121047000,-500.0,0.00014829,2]
[424746306,1781121047000,-500.0,0.00014829,2]
[424746305,1781121047000,-500.0,0.00014829,2]
[424746300,1781121047000,-500.0,0.00014829,2]
[424746303,1781121047000,-500.0,0.00014829,2]
[424746297,1781121047000,-500.0,0.00014829,2]
[424746302,1781121047000,-500.0,0.00014829,2]
[424746359,1781121048000,-5800.0,0.00014891,2]
[424746364,1781121048000,-25000.0,0.000149,3]
[424746362,1781121048000,-5800.0,0.000149,2]
[424746358,1781121048000,-25000.0,0.00014891,3]
[424746360,1781121048000,-151.0,0.00014892,2]
[424746361,1781121048000,-25000.0,0.000149,3]
[424746373,1781121048000,-150.0,0.00014953,2]
[424746367,1781121048000,-9500.0,0.000149,5]
[424746365,1781121048000,-59339.75166014,0.000149,2]
[424746363,1781121048000,-10000.0,0.000149,2]
[424746369,1781121048000,-4481.62276616,0.000149,2]
[424746366,1781121048000,-2491.4698901,0.000149,2]
[424746368,1781121048000,-7295.32840731,0.000149,2]
[424746354,1781121048000,-5800.0,0.00014883,2]
[424746374,1781121048000,-162.09715989,0.00014953,2]
[424746357,1781121048000,-25000.0,0.00014891,3]
[424746350,1781121048000,-150.0,0.00014879,2]
[424746355,1781121048000,-150.0,0.00014886,2]
[424746341,1781121048000,-10000.0,0.00014864,2]
[424746340,1781121048000,-162.09715989,0.00014859,2]
[424746339,1781121048000,-5800.0,0.00014858,2]
[424746342,1781121048000,-25000.0,0.00014865,3]
[424746352,1781121048000,-25000.0,0.00014882,3]
[424746351,1781121048000,-300.0,0.00014881,2]
[424746356,1781121048000,-248.910246,0.00014891,2]
[424746344,1781121048000,-150.0,0.00014871,2]
[424746345,1781121048000,-300.0,0.00014873,2]
[424746348,1781121048000,-5800.0,0.00014874,2]
[424746346,1781121048000,-25000.0,0.00014874,3]
[424746347,1781121048000,-25000.0,0.00014874,3]
[424746349,1781121048000,-200.0,0.00014876,2]
[424746353,1781121048000,-25000.0,0.00014882,3]
[424746343,1781121048000,-5800.0,0.00014866,2]
[424746370,1781121048000,-1638.77828422,0.000149,2]
[424746371,1781121048000,-162.09715989,0.00014906,2]
[424746375,1781121048000,-401.78,0.00014976,2]
[424746396,1781121048000,-852.44863357,0.0001499,2]
[424746397,1781121048000,-18693.66522378,0.00014994,2]
[424746394,1781121048000,-222.56365309,0.00014986,2]
[424746401,1781121048000,-500.0,0.00014998,2]
[424746399,1781121048000,-413.03435697,0.00014998,2]
[424746400,1781121048000,-500.0,0.00014998,2]
[424746398,1781121048000,-500.0,0.00014998,2]
[424746403,1781121048000,-3402.88,0.00014998,2]
[424746402,1781121048000,-500.0,0.00014998,2]
[424746405,1781121048000,-500.0,0.00014998,2]
[424746406,1781121048000,-625.79,0.00014998,2]
[424746407,1781121048000,-500.0,0.00014998,2]
[424746408,1781121048000,-500.0,0.00014998,2]
[424746409,1781121048000,-500.0,0.00014998,2]
[424746372,1781121048000,-150.0,0.0001492,2]
[424746395,1781121048000,-2000.0,0.0001499,2]
[424746393,1781121048000,-215.44236381,0.00014986,2]
[424746404,1781121048000,-500.0,0.00014998,2]
[424746392,1781121048000,-167.4955917,0.00014986,2]
[424746390,1781121048000,-190.96821533,0.00014986,2]
[424746381,1781121048000,-500.0,0.00014983,2]
[424746376,1781121048000,-500.0,0.00014983,2]
[424746378,1781121048000,-500.0,0.00014983,2]
[424746383,1781121048000,-625.79,0.00014983,2]
[424746384,1781121048000,-500.0,0.00014983,2]
[424746377,1781121048000,-500.0,0.00014983,2]
[424746379,1781121048000,-500.0,0.00014983,2]
[424746382,1781121048000,-593.17756439,0.00014983,2]
[424746386,1781121048000,-225.2504377,0.00014986,2]
[424746385,1781121048000,-500.0,0.00014983,2]
[424746387,1781121048000,-259.72963901,0.00014986,2]
[424746388,1781121048000,-150.0,0.00014986,2]
[424746389,1781121048000,-284.66694044,0.00014986,2]
[424746380,1781121048000,-3402.88,0.00014983,2]
[424746391,1781121048000,-244.03049337,0.00014986,2]
[424746448,1781121049000,-3402.88,0.00014999,2]
[424746458,1781121049000,-500.0,0.00014999,2]
[424746457,1781121049000,-500.0,0.00014999,2]
[424746449,1781121049000,-3402.88,0.00014999,2]
[424746444,1781121049000,-3402.88,0.00014999,2]
[424746447,1781121049000,-3402.88,0.00014999,2]
[424746460,1781121049000,-500.0,0.00014999,2]
[424746445,1781121049000,-3402.88,0.00014999,2]
[424746439,1781121049000,-500.0,0.00014999,2]
[424746440,1781121049000,-3402.88,0.00014999,2]
[424746443,1781121049000,-3402.88,0.00014999,2]
[424746455,1781121049000,-477.63805442,0.00014999,2]
[424746459,1781121049000,-500.0,0.00014999,2]
[424746454,1781121049000,-3403.04204309,0.00014999,2]
[424746451,1781121049000,-3402.88,0.00014999,2]
[424746452,1781121049000,-3402.88,0.00014999,2]
[424746453,1781121049000,-3402.88,0.00014999,2]
[424746450,1781121049000,-3402.88,0.00014999,2]
[424746461,1781121049000,-267.12,0.00014999,2]
[424746462,1781121049000,-625.79,0.00014999,2]
[424746467,1781121049000,-625.79,0.00014999,2]
[424746464,1781121049000,-625.79,0.00014999,2]
[424746468,1781121049000,-625.79,0.00014999,2]
[424746466,1781121049000,-625.79,0.00014999,2]
[424746442,1781121049000,-3402.88,0.00014999,2]
[424746456,1781121049000,-500.0,0.00014999,2]
[424746441,1781121049000,-3402.88,0.00014999,2]
[424746421,1781121049000,-537.14703498,0.00014999,2]
[424746438,1781121049000,-500.0,0.00014999,2]
[424746413,1781121049000,-500.0,0.00014999,2]
[424746412,1781121049000,-500.0,0.00014999,2]
[424746411,1781121049000,-500.0,0.00014999,2]
[424746410,1781121049000,-500.0,0.00014999,2]
[424746415,1781121049000,-500.0,0.00014999,2]
[424746418,1781121049000,-500.0,0.00014999,2]
[424746417,1781121049000,-500.0,0.00014999,2]
[424746419,1781121049000,-500.0,0.00014999,2]
[424746414,1781121049000,-500.0,0.00014999,2]
[424746416,1781121049000,-500.0,0.00014999,2]
[424746420,1781121049000,-500.0,0.00014999,2]
[424746423,1781121049000,-500.0,0.00014999,2]
[424746437,1781121049000,-500.0,0.00014999,2]
[424746422,1781121049000,-500.0,0.00014999,2]
[424746424,1781121049000,-500.0,0.00014999,2]
[424746426,1781121049000,-500.0,0.00014999,2]
[424746429,1781121049000,-500.0,0.00014999,2]
[424746430,1781121049000,-500.0,0.00014999,2]
[424746427,1781121049000,-500.0,0.00014999,2]
[424746428,1781121049000,-500.0,0.00014999,2]
[424746431,1781121049000,-500.0,0.00014999,2]
[424746434,1781121049000,-281.67279939,0.00014999,2]
[424746436,1781121049000,-500.0,0.00014999,2]
[424746432,1781121049000,-500.0,0.00014999,2]
[424746435,1781121049000,-500.0,0.00014999,2]
[424746433,1781121049000,-500.0,0.00014999,2]
[424746425,1781121049000,-500.0,0.00014999,2]
[424746465,1781121049000,-625.79,0.00014999,2]
[424746446,1781121049000,-3402.88,0.00014999,2]
[424746463,1781121049000,-625.79,0.00014999,2]
[424746507,1781121049000,-2000.0,0.00015,2]
[424746498,1781121049000,-1147418.55949052,0.00015,2]
[424746502,1781121049000,-225.0,0.00015,2]
[424746500,1781121049000,-421.56,0.00015,2]
[424746506,1781121049000,-476.61,0.00015,2]
[424746503,1781121049000,-223.0,0.00015,2]
[424746504,1781121049000,-1906.48,0.00015,2]
[424746505,1781121049000,-794.37,0.00015,2]
[424746509,1781121049000,-1305.27,0.00015,2]
[424746513,1781121049000,-1781.89,0.00015,2]
[424746512,1781121049000,-1276.53,0.00015,2]
[424746511,1781121049000,-3000.0,0.00015,2]
[424746501,1781121049000,-252.94,0.00015,2]
[424746510,1781121049000,-783.16,0.00015,2]
[424746514,1781121049000,-1069.13,0.00015,2]
[424746517,1781121049000,-2000.0,0.00015,2]
[424746515,1781121049000,-417.68,0.00015,2]
[424746520,1781121049000,-1293.94,0.00015,2]
[424746516,1781121049000,-278.45,0.00015,2]
[424746519,1781121049000,-2000.0,0.00015,2]
[424746522,1781121049000,-1039.14,0.00015,2]
[424746521,1781121049000,-2000.0,0.00015,2]
[424746523,1781121049000,-1823.48,0.00015,2]
[424746526,1781121049000,-261.06,0.00015,2]
[424746525,1781121049000,-626.54,0.00015,2]
[424746469,1781121049000,-625.79,0.00014999,2]
[424746518,1781121049000,-2000.0,0.00015,2]
[424746508,1781121049000,-1132.65,0.00015,2]
[424746524,1781121049000,-166.0,0.00015,2]
[424746491,1781121049000,-630.39633207,0.00014999,2]
[424746499,1781121049000,-1011.74,0.00015,2]
[424746470,1781121049000,-625.79,0.00014999,2]
[424746482,1781121049000,-500.0,0.00014999,2]
[424746484,1781121049000,-500.0,0.00014999,2]
[424746483,1781121049000,-500.0,0.00014999,2]
[424746471,1781121049000,-625.79,0.00014999,2]
[424746475,1781121049000,-625.79,0.00014999,2]
[424746479,1781121049000,-625.79,0.00014999,2]
[424746473,1781121049000,-625.79,0.00014999,2]
[424746481,1781121049000,-500.0,0.00014999,2]
[424746480,1781121049000,-625.93191774,0.00014999,2]
[424746476,1781121049000,-625.79,0.00014999,2]
[424746477,1781121049000,-625.79,0.00014999,2]
[424746472,1781121049000,-625.79,0.00014999,2]
[424746478,1781121049000,-625.79,0.00014999,2]
[424746474,1781121049000,-625.79,0.00014999,2]
[424746493,1781121049000,-500.0,0.00014999,2]
[424746495,1781121049000,-500.0,0.00014999,2]
[424746492,1781121049000,-500.0,0.00014999,2]
[424746488,1781121049000,-500.0,0.00014999,2]
[424746497,1781121049000,-8709197.21530631,0.00015,2]
[424746494,1781121049000,-500.0,0.00014999,2]
[424746487,1781121049000,-500.0,0.00014999,2]
[424746496,1781121049000,-225.08989443,0.00014999,2]
[424746490,1781121049000,-500.0,0.00014999,2]
[424746486,1781121049000,-517.7,0.00014999,2]
[424746485,1781121049000,-500.0,0.00014999,2]
[424746489,1781121049000,-500.0,0.00014999,2]
[424746567,1781121050000,-150.0,0.000154,2]
[424746565,1781121050000,-573.23,0.00015398,2]
[424746562,1781121050000,-350.0,0.00015326,2]
[424746564,1781121050000,-573.19,0.00015398,2]
[424746561,1781121050000,-4135.31,0.0001531,2]
[424746560,1781121050000,-7336.31,0.0001531,2]
[424746559,1781121050000,-9999.99,0.0001531,2]
[424746568,1781121050000,-400.0,0.000154,2]
[424746557,1781121050000,-400.0,0.000153,2]
[424746563,1781121050000,-573.23,0.00015398,2]
[424746558,1781121050000,-5060.50245357,0.000153,2]
[424746573,1781121050000,-666.19477138,0.00015555,2]
[424746569,1781121050000,-5060.50245357,0.000154,2]
[424746574,1781121050000,-150.0,0.000156,2]
[424746570,1781121050000,-737.39388,0.000154,2]
[424746572,1781121050000,-666.19477138,0.00015531,2]
[424746571,1781121050000,-186.34595904,0.0001546,2]
[424746575,1781121050000,-400.0,0.000156,2]
[424746577,1781121050000,-737.39388,0.000156,2]
[424746576,1781121050000,-5060.50245357,0.000156,2]
[424746579,1781121050000,-666.19477138,0.00015645,2]
[424746578,1781121050000,-666.19477138,0.00015613,2]
[424746556,1781121050000,-150.0,0.000153,2]
[424746582,1781121050000,-150.0,0.000157,2]
[424746566,1781121050000,-573.19,0.00015398,2]
[424746554,1781121050000,-526.2459661,0.00015288,2]
[424746538,1781121050000,-344.8962505,0.00015,2]
[424746547,1781121050000,-400.0,0.000151,2]
[424746581,1781121050000,-150.0,0.00015656,2]
[424746529,1781121050000,-229.05,0.00015,2]
[424746527,1781121050000,-156.63,0.00015,2]
[424746528,1781121050000,-241.49,0.00015,2]
[424746532,1781121050000,-2016.09639127,0.00015,2]
[424746533,1781121050000,-2016.09639127,0.00015,2]
[424746542,1781121050000,-5467.82294695,0.00015012,2]
[424746531,1781121050000,-151.0,0.00015,2]
[424746534,1781121050000,-737.39387,0.00015,2]
[424746535,1781121050000,-1551.8567758,0.00015,2]
[424746540,1781121050000,-1896.67333232,0.00015,2]
[424746537,1781121050000,-1000.0,0.00015,2]
[424746541,1781121050000,-350.0,0.00015003,4]
[424746536,1781121050000,-1551.8567758,0.00015,2]
[424746539,1781121050000,-1896.67333232,0.00015,2]
[424746544,1781121050000,-1252.0,0.00015026,2]
[424746545,1781121050000,-150.0,0.000151,2]
[424746543,1781121050000,-350.0,0.00015014,3]
[424746548,1781121050000,-5060.50245357,0.000151,2]
[424746551,1781121050000,-150.0,0.000152,2]
[424746546,1781121050000,-150.0,0.000151,2]
[424746552,1781121050000,-737.39388,0.000152,2]
[424746549,1781121050000,-1555.5,0.00015102,2]
[424746550,1781121050000,-350.0,0.00015114,3]
[424746553,1781121050000,-166.09,0.0001523,2]
[424746555,1781121050000,-243.44,0.00015291,2]
[424746583,1781121050000,-150.0,0.000157,2]
[424746530,1781121050000,-151.0,0.00015,2]
[424746580,1781121050000,-1613.0535,0.0001565,2]
[424746613,1781121050000,-350.0,0.00016039,4]
[424746615,1781121050000,-666.19477138,0.0001609,2]
[424746616,1781121050000,-500.0,0.00016096,2]
[424746617,1781121050000,-500.0,0.00016096,2]
[424746614,1781121050000,-666.19477138,0.00016055,2]
[424746620,1781121050000,-666.19477138,0.00016114,2]
[424746619,1781121050000,-5060.50245357,0.000161,2]
[424746623,1781121050000,-350.0,0.0001617,2]
[424746633,1781121050000,-1358.0,0.00016222,2]
[424746634,1781121050000,-3556.0,0.00016222,2]
[424746622,1781121050000,-666.19477138,0.00016148,2]
[424746625,1781121050000,-666.19477138,0.00016183,2]
[424746624,1781121050000,-666.19477138,0.00016181,2]
[424746626,1781121050000,-1672.7364795,0.00016198,2]
[424746627,1781121050000,-282.0,0.00016199,2]
[424746631,1781121050000,-573.19,0.0001622,2]
[424746628,1781121050000,-5060.50245357,0.000162,2]
[424746629,1781121050000,-573.23,0.0001622,2]
[424746630,1781121050000,-573.19,0.0001622,2]
[424746632,1781121050000,-572.74,0.0001622,2]
[424746635,1781121050000,-382.0,0.00016222,2]
[424746636,1781121050000,-1274.0,0.00016222,2]
[424746638,1781121050000,-1214.0,0.00016222,2]
[424746637,1781121050000,-933.0,0.00016222,2]
[424746639,1781121050000,-3643.0,0.00016222,2]
[424746621,1781121050000,-666.19477138,0.00016143,2]
[424746610,1781121050000,-737.39388,0.00016,2]
[424746584,1781121050000,-400.0,0.000157,2]
[424746618,1781121050000,-150.0,0.000161,2]
[424746586,1781121050000,-666.19477138,0.00015736,2]
[424746585,1781121050000,-5060.50245357,0.000157,2]
[424746588,1781121050000,-666.19477138,0.00015739,2]
[424746587,1781121050000,-666.19477138,0.00015738,2]
[424746590,1781121050000,-5467.82294695,0.00015775,2]
[424746589,1781121050000,-666.19477138,0.00015753,2]
[424746592,1781121050000,-737.39387,0.000158,2]
[424746612,1781121050000,-666.19477138,0.00016023,2]
[424746595,1781121050000,-666.19477138,0.00015825,2]
[424746593,1781121050000,-5467.82294695,0.00015809,2]
[424746597,1781121050000,-666.19477138,0.00015888,2]
[424746596,1781121050000,-666.19477138,0.00015841,2]
[424746594,1781121050000,-5467.82294695,0.00015813,2]
[424746591,1781121050000,-150.0,0.000158,2]
[424746599,1781121050000,-150.0,0.000159,2]
[424746600,1781121050000,-5060.50245357,0.000159,2]
[424746609,1781121050000,-215.92376884,0.00016,3]
[424746611,1781121050000,-191.7390802,0.00016,2]
[424746606,1781121050000,-666.19477138,0.0001599,2]
[424746605,1781121050000,-666.19477138,0.00015962,2]
[424746604,1781121050000,-666.19477138,0.00015958,2]
[424746603,1781121050000,-666.19477138,0.00015925,2]
[424746608,1781121050000,-300.0,0.00016,2]
[424746598,1781121050000,-666.19477138,0.0001589,2]
[424746607,1781121050000,-153.0,0.00016,2]
[424746602,1781121050000,-666.19477138,0.00015901,2]
[424746601,1781121050000,-150.0,0.000159,2]
[424746679,1781121051000,-151.0,0.00016438,2]
[424746691,1781121051000,-573.19,0.00017042,2]
[424746677,1781121051000,-151.0,0.00016438,2]
[424746675,1781121051000,-151.0,0.00016438,2]
[424746676,1781121051000,-151.0,0.00016438,2]
[424746671,1781121051000,-209.192903,0.00016438,2]
[424746674,1781121051000,-260.67660348,0.00016438,2]
[424746678,1781121051000,-151.0,0.00016438,2]
[424746672,1781121051000,-210.26506454,0.00016438,2]
[424746670,1781121051000,-179.28811973,0.00016438,2]
[424746673,1781121051000,-210.31867261,0.00016438,2]
[424746681,1781121051000,-151.0,0.00016438,2]
[424746694,1781121051000,-274.0,0.0001729,2]
[424746683,1781121051000,-241.49,0.000165,2]
[424746684,1781121051000,-1321.0,0.00016509,2]
[424746688,1781121051000,-1800.0,0.00017,2]
[424746686,1781121051000,-1011.0,0.00016718,2]
[424746682,1781121051000,-5060.50245357,0.000165,2]
[424746690,1781121051000,-573.19,0.00017042,2]
[424746687,1781121051000,-1734.62772924,0.00016746,2]
[424746689,1781121051000,-573.19,0.00017042,2]
[424746685,1781121051000,-169.46065362,0.00016554,2]
[424746692,1781121051000,-309.0,0.0001729,2]
[424746693,1781121051000,-319.0,0.0001729,2]
[424746668,1781121051000,-416.8,0.00016438,2]
[424746680,1781121051000,-151.0,0.00016438,2]
[424746669,1781121051000,-282.502183,0.00016438,2]
[424746654,1781121051000,-1025.0,0.0001629,2]
[424746665,1781121051000,-666.19477138,0.00016375,2]
[424746703,1781121051000,-293.0,0.0001729,2]
[424746645,1781121051000,-319.0,0.0001629,2]
[424746641,1781121051000,-666.19477138,0.00016254,2]
[424746640,1781121051000,-666.19477138,0.00016253,2]
[424746642,1781121051000,-666.19477138,0.0001626,2]
[424746644,1781121051000,-309.0,0.0001629,2]
[424746647,1781121051000,-990.0,0.0001629,2]
[424746657,1781121051000,-288.0,0.0001629,2]
[424746648,1781121051000,-1333.0,0.0001629,2]
[424746646,1781121051000,-274.0,0.0001629,2]
[424746650,1781121051000,-217.0,0.0001629,2]
[424746649,1781121051000,-309.0,0.0001629,2]
[424746651,1781121051000,-869.0,0.0001629,2]
[424746655,1781121051000,-293.0,0.0001629,2]
[424746653,1781121051000,-266.0,0.0001629,2]
[424746656,1781121051000,-515.0,0.0001629,2]
[424746652,1781121051000,-321.0,0.0001629,2]
[424746658,1781121051000,-666.19477138,0.00016291,2]
[424746661,1781121051000,-666.19477138,0.00016316,2]
[424746659,1781121051000,-666.19477138,0.00016303,2]
[424746663,1781121051000,-666.19477138,0.00016353,2]
[424746664,1781121051000,-666.19477138,0.00016373,2]
[424746666,1781121051000,-5060.50245357,0.000164,2]
[424746667,1781121051000,-350.0,0.0001643,2]
[424746660,1781121051000,-666.19477138,0.00016315,2]
[424746662,1781121051000,-666.19477138,0.00016346,2]
[424746643,1781121051000,-666.19477138,0.00016284,2]
[424746695,1781121051000,-990.0,0.0001729,2]
[424746697,1781121051000,-309.0,0.0001729,2]
[424746730,1781121051000,-1025.0,0.0001829,2]
[424746728,1781121051000,-321.0,0.0001829,2]
[424746731,1781121051000,-293.0,0.0001829,2]
[424746732,1781121051000,-515.0,0.0001829,2]
[424746727,1781121051000,-869.0,0.0001829,2]
[424746734,1781121051000,-1934.38338736,0.0001839,2]
[424746733,1781121051000,-288.0,0.0001829,2]
[424746735,1781121051000,-166.08642978,0.000184,2]
[424746737,1781121051000,-150.0,0.00018656,2]
[424746747,1781121051000,-150.0,0.00019,2]
[424746736,1781121051000,-416.8,0.0001841,2]
[424746739,1781121051000,-575.4,0.00018685,2]
[424746740,1781121051000,-185.08,0.00018685,2]
[424746746,1781121051000,-2005.9555727,0.00018938,2]
[424746742,1781121051000,-185.08,0.00018686,2]
[424746741,1781121051000,-185.09,0.00018686,2]
[424746743,1781121051000,-185.08,0.00018686,2]
[424746744,1781121051000,-500.0,0.00018836,7]
[424746745,1781121051000,-500.0,0.00018836,7]
[424746749,1781121051000,-3124.97495216,0.00019,2]
[424746751,1781121051000,-176.78090368,0.00019101,2]
[424746748,1781121051000,-274469.88356788,0.00019,2]
[424746750,1781121051000,-814.06941199,0.00019,2]
[424746752,1781121051000,-350.0,0.0001916,3]
[424746696,1781121051000,-1333.0,0.0001729,2]
[424746726,1781121051000,-217.0,0.0001829,2]
[424746729,1781121051000,-266.0,0.0001829,2]
[424746738,1781121051000,-185.08,0.00018685,2]
[424746721,1781121051000,-319.0,0.0001829,2]
[424746725,1781121051000,-309.0,0.0001829,2]
[424746699,1781121051000,-869.0,0.0001729,2]
[424746701,1781121051000,-266.0,0.0001729,2]
[424746700,1781121051000,-321.0,0.0001729,2]
[424746702,1781121051000,-1025.0,0.0001729,2]
[424746714,1781121051000,-1988.0,0.00018,3]
[424746704,1781121051000,-515.0,0.0001729,2]
[424746705,1781121051000,-288.0,0.0001729,2]
[424746713,1781121051000,-227.45964902,0.00018,2]
[424746706,1781121051000,-1798.80895522,0.00017294,2]
[424746708,1781121051000,-1865.36488656,0.00017842,2]
[424746707,1781121051000,-282.0,0.00017672,2]
[424746709,1781121051000,-185.09,0.00017864,2]
[424746698,1781121051000,-217.0,0.0001729,2]
[424746720,1781121051000,-309.0,0.0001829,2]
[424746711,1781121051000,-185.04,0.00017864,2]
[424746710,1781121051000,-185.08,0.00017864,2]
[424746715,1781121051000,-7872.34457716,0.00018,2]
[424746716,1781121051000,-166.08642978,0.00018,2]
[424746718,1781121051000,-350.0,0.00018,2]
[424746719,1781121051000,-166.08642978,0.000182,2]
[424746723,1781121051000,-990.0,0.0001829,2]
[424746712,1781121051000,-185.08,0.00017864,2]
[424746724,1781121051000,-1333.0,0.0001829,2]
[424746722,1781121051000,-274.0,0.0001829,2]
[424746717,1781121051000,-241.49,0.00018,2]
[424746789,1781121052000,-1148.61238259,0.00019486,2]
[424746774,1781121052000,-288.0,0.0001929,2]
[424746796,1781121052000,-578.20924308,0.00019486,2]
[424746791,1781121052000,-1191.11104074,0.00019486,2]
[424746787,1781121052000,-1107.63007,0.00019486,2]
[424746782,1781121052000,-693.39197629,0.00019486,2]
[424746788,1781121052000,-151.0,0.00019486,2]
[424746783,1781121052000,-151.0,0.00019486,2]
[424746777,1781121052000,-153.0765,0.00019486,2]
[424746778,1781121052000,-155.0390625,0.00019486,2]
[424746807,1781121052000,-151.0,0.00019486,2]
[424746797,1781121052000,-1328.27659266,0.00019486,2]
[424746793,1781121052000,-1235.18214925,0.00019486,2]
[424746799,1781121052000,-151.0,0.00019486,2]
[424746790,1781121052000,-151.0,0.00019486,2]
[424746795,1781121052000,-1280.88388877,0.00019486,2]
[424746792,1781121052000,-154.15483266,0.00019486,2]
[424746798,1781121052000,-1377.42282658,0.00019486,2]
[424746808,1781121052000,-500.0,0.00019486,2]
[424746801,1781121052000,-151.0,0.00019486,2]
[424746806,1781121052000,-1536.04360648,0.00019486,2]
[424746803,1781121052000,-151.0,0.00019486,2]
[424746800,1781121052000,-1428.38747117,0.00019486,2]
[424746802,1781121052000,-1481.2378076,0.00019486,2]
[424746804,1781121052000,-151.0,0.00019486,2]
[424746794,1781121052000,-151.0,0.00019486,2]
[424746784,1781121052000,-1068.11,0.00019486,2]
[424746760,1781121052000,-3643.0,0.00019222,2]
[424746780,1781121052000,-1030.0,0.00019486,2]
[424746759,1781121052000,-452.269,0.00019222,2]
[424746758,1781121052000,-933.0,0.00019222,2]
[424746755,1781121052000,-3556.0,0.00019222,2]
[424746753,1781121052000,-542.0,0.00019178,2]
[424746754,1781121052000,-1358.0,0.00019222,2]
[424746756,1781121052000,-382.0,0.00019222,2]
[424746757,1781121052000,-1274.0,0.00019222,2]
[424746762,1781121052000,-319.0,0.0001929,2]
[424746770,1781121052000,-266.0,0.0001929,2]
[424746771,1781121052000,-1025.0,0.0001929,2]
[424746773,1781121052000,-515.0,0.0001929,2]